fUST/lending_fUST_20260129
["ID","MTS","AMOUNT","RATE_DAILY","PERIOD"]
[403888646,1769632239632,-474.05978686,0.00015896,2]
[403888648,1769632239641,-216.23346271,0.00016,2]
[403888650,1769632239652,-2504.19700684,0.00016012,2]
[403888652,1769632239662,-3000.0,0.00016012,2]
[403888654,1769632239673,-1000.0,0.00016144,2]
[403888657,1769632239683,-200.0,0.00016438,2]
[403888659,1769632239693,-500.0,0.00016438,2]
[403888661,1769632239703,-423.36819008,0.00016438,2]
[403888663,1769632239714,-150.42150351,0.00016438,2]
[403888665,1769632239723,-164.57351573,0.00016438,2]
[403888667,1769632239733,-3000.0,0.00016438,2]
[403888669,1769632239743,-185.13,0.0001644,2]
[403888671,1769632239753,-185.13,0.0001644,2]
[403888674,1769632239764,-185.13,0.0001644,2]
[403888675,1769632239774,-200.0,0.00016473,2]
[403888677,1769632239784,-2000.0,0.0001656,2]
[403888679,1769632239794,-3500.0,0.00016986,2]
[403888681,1769632239804,-92124.15564802,0.00017,2]
[403888683,1769632239815,-1152.0,0.0001701,2]
[403888686,1769632239827,-1041.66666667,0.00017035,2]
[403888688,1769632239837,-160.0,0.00017035,2]
[403888690,1769632239847,-160.0,0.00017035,2]
[403888692,1769632239857,-4000.0,0.00017534,2]
[403888694,1769632239869,-2141.16843233,0.000176,2]
[403888696,1769632239879,-1000.0,0.00017758,2]
[403888698,1769632239889,-244.0,0.00017758,2]
[403888700,1769632239899,-150.12313849,0.00017808,2]
[403888702,1769632239909,-281.81382901,0.00017842,2]
[403888704,1769632239920,-536.80299394,0.00017896,2]
[403888706,1769632239930,-3717.6201328,0.00017982,2]
[403888709,1769632239940,-135573.83356864,0.00018,2]
[403888711,1769632239949,-126062.66862741,0.00018,2]
[403888713,1769632239959,-4500.0,0.00018082,2]
[403888715,1769632239970,-9548.19578351,0.000183,3]
[403888717,1769632239981,-4194.85911576,0.0001863,2]
[403888719,1769632239990,-1613.0,0.00018679,2]
[403888721,1769632240000,-303.10001603,0.000189,2]
[403888723,1769632240010,-281.05722388,0.00018904,3]
[403888746,1769632240211,-69497.33252454,0.00019,2]
[403888748,1769632240226,-11694.55470091,0.00019,2]
[403888750,1769632240235,-2603.49,0.00019,2]
[403888752,1769632240244,-508.0614,0.00019178,2]
[403888754,1769632240253,-508.0614,0.00019178,2]
[403888756,1769632240262,-200.0,0.00019178,2]
[403888759,1769632240271,-508.0614,0.00019178,2]
[403888760,1769632240281,-508.0614,0.00019178,2]
[403888761,1769632240289,-508.0614,0.00019178,2]
[403888762,1769632240299,-5520.1,0.000192,2]
[403888763,1769632240308,-1000.0,0.00019534,2]
[403888764,1769632240318,-492.0,0.00019534,2]
[403888765,1769632240327,-160.5,0.000196,2]
[403888766,1769632240336,-172.01,0.000196,2]
[403888767,1769632240349,-1381.6,0.000196,2]
[403888768,1769632240358,-3717.62013273,0.00019861,2]
[403888769,1769632240367,-599.54620102,0.00019896,2]
[403888770,1769632240377,-9506.71508995,0.0002,2]
[403888772,1769632240387,-379571.27098759,0.0002,2]
[403888774,1769632240396,-508.0614,0.00020411,5]
[403888776,1769632240405,-508.0614,0.00020411,5]
[403888778,1769632240415,-508.0614,0.00020411,5]
[403888780,1769632240424,-1012.0,0.00020511,2]
[403888781,1769632240433,-411.308015,0.00020548,2]
[403888783,1769632240443,-508.0614,0.00020822,6]
[403888785,1769632240452,-508.0614,0.00020822,6]
[403888786,1769632240461,-508.0614,0.00020822,6]
[403888787,1769632240470,-333.10205309,0.00021283,2]
[403888788,1769632240480,-1000.0,0.00021487,10]
[403888789,1769632240489,-791.0,0.00021487,10]
[403888791,1769632240498,-3717.62013273,0.0002174,2]
[403888793,1769632240507,-662.28940811,0.00021896,2]
[403888795,1769632240516,-325.74,0.000222,7]
[403888797,1769632240525,-236.58,0.000222,2]
[403888798,1769632240534,-500.0,0.00022403,2]
[403888799,1769632240543,-500.0,0.00023524,2]
[403888800,1769632240552,-3717.62013273,0.00023619,2]
[403888801,1769632240561,-1000.0,0.00023636,10]
[403888802,1769632240572,-1000.0,0.00023636,10]
[403888803,1769632240581,-165.0,0.00023836,11]
[403888804,1769632240590,-725.03261519,0.00023896,2]
[403888805,1769632240599,-380.0,0.00024658,2]
[403888806,1769632240609,-500.0,0.000247,2]
[403888807,1769632240618,-5520.1,0.000249,2]
[403888808,1769632240627,-615285.003744,0.000249,2]
[403888809,1769632240635,-3717.62013273,0.00025498,2]
[403888810,1769632240645,-787.77582228,0.00025896,2]
[403888811,1769632240653,-1000.0,0.00025999,10]
[403888812,1769632240663,-1000.0,0.00025999,10]
[403888813,1769632240674,-579.0,0.00025999,10]
[403888814,1769632240683,-153000.00000066,0.00026,30]
[403888815,1769632240691,-1041.66666667,0.00026,30]
[403888816,1769632240701,-1041.66666667,0.000268,30]
[403888818,1769632240710,-1381.6,0.000269,14]
[403888819,1769632240719,-167.0,0.00027,7]
[403888820,1769632240728,-184.95386914,0.00027279,5]
[403888821,1769632240737,-157.26127169,0.00027279,5]
[403888822,1769632240746,-3717.62013273,0.00027376,2]
[403888823,1769632240754,-157.1173049,0.00027397,2]
[403888824,1769632240764,-160.5,0.000274,7]
[403888826,1769632240773,-1041.66666667,0.000276,30]
[403888828,1769632240782,-350.364508,0.00027612,60]
[403888829,1769632240791,-245.255156,0.00027612,30]
[403888830,1769632240800,-1486.41206018,0.00027882,2]
[403888831,1769632240809,-5939.7025925,0.00027882,2]
[403888832,1769632240818,-573.16357437,0.00027882,2]
[403888833,1769632240827,-2292.65429748,0.00027882,2]
[403888834,1769632240836,-5158.47216933,0.00027882,2]
[403888835,1769632240845,-9161.44657272,0.00027882,2]
[403888836,1769632240854,-850.51902936,0.00027896,2]
[403888837,1769632240863,-250.0,0.00027945,5]
[403888838,1769632240873,-250.0,0.00027945,5]
[403888839,1769632240882,-236.58,0.00028,2]
[403888840,1769632240892,-184.95386914,0.00028123,5]
[403888841,1769632240902,-173.0,0.00028219,28]
[403888842,1769632240912,-276.12088692,0.00028357,2]
[403888843,1769632240922,-160.0,0.0002838,3]
[403888844,1769632240931,-276.13,0.000284,2]
[403888845,1769632240940,-1071.528267,0.000284,6]
[403888846,1769632240950,-160.0,0.000284,3]
[403888847,1769632240959,-1041.66666667,0.000284,3]
[403888848,1769632240968,-350.0,0.00028493,5]
[403888849,1769632240979,-350.0,0.00028493,5]
[403888850,1769632240988,-57391.43410192,0.000285,7]
[403888851,1769632240998,-160.0,0.000285,7]
[403888852,1769632241008,-1041.66666667,0.000285,7]
[403888853,1769632241017,-1000.0,0.00028599,30]
[403888854,1769632241026,-1000.0,0.00028599,30]
[403888855,1769632241035,-1000.0,0.00028599,30]
[403888856,1769632241044,-325.74,0.000286,7]
[403888857,1769632241054,-5520.1,0.000286,2]
[403888858,1769632241064,-1000.0,0.000289,6]
[403888859,1769632241075,-175.182255,0.00028987,30]
[403888860,1769632241084,-184.95386914,0.00028993,5]
[403888861,1769632241093,-1120.30664514,0.00029,2]
[403888862,1769632241102,-450.0,0.00029041,5]
[403888863,1769632241111,-450.0,0.00029041,5]
[403888864,1769632241121,-175.182255,0.00029106,60]
[403888865,1769632241131,-4246.65524428,0.0002912,2]
[403888866,1769632241140,-1957.856,0.0002912,2]
[403888867,1769632241149,-2747.6971853,0.00029142,2]
[403888868,1769632241158,-400.0,0.00029156,3]
[403888869,1769632241167,-2030.296672,0.00029175,2]
[403888870,1769632241178,-5000.0,0.00029206,19]
[403888871,1769632241187,-2105.41764886,0.0002923,2]
[403888872,1769632241196,-3717.62013273,0.00029255,2]
[403888873,1769632241205,-2183.31810187,0.00029285,2]
[403888874,1769632241214,-2264.10087164,0.0002934,2]
[403888875,1769632241223,-2347.87260389,0.00029395,2]
[403888876,1769632241232,-500.0,0.00029399,7]
[403888877,1769632241241,-1000.0,0.000294,6]
[403888878,1769632241251,-160.0,0.000294,7]
[403888879,1769632241260,-1041.66666667,0.000294,7]
[403888880,1769632241269,-2434.74389024,0.0002945,2]
[403888881,1769632241278,-2524.82941417,0.00029505,2]
[403888882,1769632241287,-2618.2481025,0.0002956,2]
[403888883,1769632241296,-550.0,0.00029589,5]
[403888884,1769632241305,-236.57189686,0.00029589,5]
[403888885,1769632241314,-2715.12328229,0.00029615,2]
[403888886,1769632241323,-168.0,0.00029631,2]
[403888887,1769632241335,-913.26223644,0.00029896,2]
[403888888,1769632241347,-1000.0,0.000299,6]
[403888889,1769632241356,-161.0,0.00029948,3]
[403888890,1769632241364,-305.6755923,0.00029973,30]
[403888891,1769632241375,-305.6755923,0.00029973,30]
[403888892,1769632241384,-305.6755923,0.00029973,30]
[403888893,1769632241393,-305.6755923,0.00029973,30]
[403888894,1769632241402,-305.6755923,0.00029973,30]
[403888895,1769632241413,-305.6755923,0.00029973,30]
[403888896,1769632241422,-305.6755923,0.00029973,30]
[403888897,1769632241432,-305.6755923,0.00029973,30]
[403888898,1769632241442,-621554.77,0.00029993,6]
[403888899,1769632241451,-73017.81,0.00029993,6]
[403888900,1769632241460,-1000.0,0.0003,14]
[403888901,1769632241469,-190.0,0.0003,14]
[403888902,1769632241478,-178.5494496,0.0003,14]
[403888903,1769632241487,-151.0,0.0003,14]
[403888904,1769632241496,-184.95386914,0.00030049,10]
[403888905,1769632241505,-400.0,0.00030083,3]
[403888906,1769632241515,-200.0,0.000301,60]
[403888907,1769632241523,-168.0,0.0003012,2]
[403888908,1769632241533,-175.20269643,0.00030137,2]
[403888909,1769632241543,-650.0,0.00030137,5]
[403888910,1769632241553,-1000.0,0.00030294,14]
[403888911,1769632241563,-1381.6,0.000303,14]
[403888912,1769632241573,-151.0,0.00030384,14]
[403888913,1769632241582,-1000.0,0.000304,6]
[403888914,1769632241591,-190.0,0.00030411,14]
[403888915,1769632241600,-161.0,0.00030436,3]
[403888916,1769632241609,-1043.65606314,0.00030479,2]
[403888917,1769632241622,-41199.39838599,0.000305,30]
[403888918,1769632241633,-160.5,0.000305,7]
[403888919,1769632241642,-1000.0,0.00030587,14]
[403888920,1769632241651,-160.0,0.00030613,4]
[403888921,1769632241660,-151.0,0.00030684,5]
[403888922,1769632241670,-169.33681227,0.00030684,5]
[403888923,1769632241679,-151.0,0.00030684,5]
[403888924,1769632241688,-261.79283996,0.00030684,5]
[403888925,1769632241697,-174.61919141,0.00030684,5]
[403888926,1769632241706,-181.08010149,0.00030684,5]
[403888927,1769632241715,-187.78006525,0.00030684,5]
[403888928,1769632241724,-377.7,0.00030684,5]
[403888929,1769632241733,-151.0,0.00030684,5]
[403888930,1769632241742,-151.0,0.00030684,5]
[403888931,1769632241751,-194.72792766,0.00030684,5]
[403888932,1769632241759,-201.93286099,0.00030684,5]
[403888933,1769632241769,-151.0,0.00030684,5]
[403888934,1769632241781,-209.40437684,0.00030684,5]
[403888935,1769632241789,-151.0,0.00030684,5]
[403888936,1769632241800,-250.0,0.00030684,5]
[403888937,1769632241811,-217.15233878,0.00030684,5]
[403888938,1769632241820,-151.0,0.00030684,5]
[403888939,1769632241829,-250.0,0.00030684,5]
[403888940,1769632241838,-151.0,0.00030684,5]
[403888941,1769632241847,-225.18697532,0.00030684,5]
[403888942,1769632241856,-233.51889341,0.00030684,5]
[403888943,1769632241865,-151.0,0.00030684,5]
[403888944,1769632241875,-578.20924308,0.00030684,5]
[403888945,1769632241884,-242.15909246,0.00030684,5]
[403888946,1769632241893,-151.0,0.00030684,5]
[403888947,1769632241903,-599.60298507,0.00030684,5]
[403888948,1769632241913,-251.11897888,0.00030684,5]
[403888949,1769632241924,-286.23816441,0.00030684,5]
[403888950,1769632241933,-621.78829552,0.00030684,5]
[403888951,1769632241943,-500.0,0.00030684,5]
[403888952,1769632241953,-260.4103811,0.00030684,5]
[403888953,1769632241963,-500.0,0.00030684,5]
[403888954,1769632241972,-393.96445136,0.00030684,5]
[403888955,1769632241981,-270.0455652,0.00030684,5]
[403888956,1769632241991,-280.03725112,0.00030684,5]
[403888957,1769632242000,-290.39862941,0.00030684,5]
[403888958,1769632242009,-174.61919141,0.00030684,5]
[403888959,1769632242019,-301.1433787,0.00030684,5]
[403888960,1769632242029,-181.08010149,0.00030684,5]
[403888961,1769632242039,-2312.83697232,0.00030684,5]
[403888962,1769632242049,-2398.4119403,0.00030684,5]
[403888963,1769632242059,-2487.15318209,0.00030684,5]
[403888964,1769632242070,-2579.17784983,0.00030684,5]
[403888965,1769632242079,-2674.60743027,0.00030684,5]
[403888966,1769632242089,-2773.56790519,0.00030684,5]
[403888967,1769632242098,-478.75725327,0.00030684,5]
[403888968,1769632242107,-496.47127164,0.00030684,5]
[403888969,1769632242117,-151.0,0.00030684,5]
[403888970,1769632242126,-514.84070869,0.00030684,5]
[403888971,1769632242136,-151.0,0.00030684,5]
[403888972,1769632242146,-533.88981491,0.00030684,5]
[403888973,1769632242155,-151.0,0.00030684,5]
[403888974,1769632242164,-553.64373807,0.00030684,5]
[403888975,1769632242173,-289.41339882,0.00030684,5]
[403888976,1769632242183,-574.12855637,0.00030684,5]
[403888977,1769632242192,-348.5216759,0.00030684,5]
[403888978,1769632242201,-750.0,0.00030685,5]
[403888979,1769632242210,-2150.0,0.00030699,2]
[403888980,1769632242219,-1369.0,0.00030699,2]
[403888981,1769632242228,-630.0,0.00030699,2]
[403888982,1769632242237,-716.0,0.00030699,2]
[403888983,1769632242247,-180.381,0.00030699,2]
[403888984,1769632242256,-558.797,0.00030699,2]
[403888985,1769632242266,-418.0,0.00030699,2]
[403888986,1769632242275,-548.9037864,0.000307,2]
[403888987,1769632242284,-2195.61514561,0.000307,2]
[403888988,1769632242293,-4940.13407763,0.000307,2]
[403888989,1769632242302,-323.16894244,0.000307,2]
[403888990,1769632242311,-1292.67576976,0.000307,2]
[403888991,1769632242322,-2908.52048195,0.000307,2]
[403888992,1769632242333,-5170.70307902,0.000307,2]
[403888993,1769632242343,-8079.22356097,0.000307,2]
[403888994,1769632242352,-250.0,0.000307,10]
[403888995,1769632242360,-159191.85609635,0.000307,6]
[403888996,1769632242369,-442.0195791,0.00030758,30]
[403888997,1769632242380,-11097.7259011,0.00030768,2]
[403888998,1769632242389,-1391.8249567,0.00030768,2]
[403888999,1769632242399,-151.0,0.00030768,14]
[403889000,1769632242410,-730.0,0.00030775,3]
[403889001,1769632242419,-206.36876951,0.00030791,10]
[403889002,1769632242428,-160.09522763,0.00030791,10]
[403889003,1769632242436,-151.0,0.00030792,31]
[403889004,1769632242445,-245.0,0.00030792,31]
[403889005,1769632242455,-1824149.61526733,0.00030792,30]
[403889006,1769632242473,-755.29110468,0.00030792,30]
[403889007,1769632242485,-261.49458053,0.00030792,30]
[403889030,1769632244386,-1739.31,0.00024247,30]
[403889031,1769632244396,-151.0,0.000249,7]
[403889032,1769632244405,-3478.62,0.00026845,30]
[403889033,1769632244415,-5217.92,0.00029443,30]
[403889034,1769632244424,-2460.09987822,0.0002967,2]
[403889035,1769632244433,-151.0,0.00030792,31]
[403889036,1769632244442,-100158.94097645,0.00030792,30]
[403889040,1769632246709,-1990.82738617,0.00030792,30]
[403889041,1769632246722,-1863.03158687,0.00030792,30]
[403889047,1769632410179,-276.32,0.00011465,2]
[403889048,1769632410204,-348.57337269,0.00011581,2]
[403889049,1769632410228,-300.0,0.00011697,2]
[403889050,1769632410255,-275.56719313,0.00011698,2]
[403889051,1769632410279,-500.0,0.00011698,2]
[403889052,1769632410305,-500.0,0.00011698,2]
[403889053,1769632410332,-500.0,0.00011698,2]
[403889054,1769632410359,-500.0,0.00011698,2]
[403889055,1769632410384,-500.0,0.00011698,2]
[403889056,1769632410412,-335.86906018,0.00011698,2]
[403889057,1769632410440,-500.0,0.00011698,2]
[403889058,1769632410467,-500.0,0.00011698,2]
[403889059,1769632410493,-500.0,0.00011698,2]
[403889060,1769632410517,-500.0,0.00011698,2]
[403889061,1769632410542,-500.0,0.00011698,2]
[403889062,1769632410568,-500.0,0.00011698,2]
[403889063,1769632410594,-202.78017245,0.00011698,2]
[403889064,1769632410620,-247.44873096,0.00011698,2]
[403889065,1769632410647,-104513.44147059,0.00011699,2]
[403889069,1769632979899,9247.2058509,0.00010698,2]
[403889070,1769633134798,-700.77956856,0.00011236,2]
[403889071,1769633143171,-256.42888323,0.00011236,2]
[403889072,1769633154753,-170.28303046,0.00011124,2]
[403889073,1769633161863,-367.29445378,0.00011124,2]
[403889074,1769633184434,367.29445378,0.00010913,2]
[403889075,1769633220292,5000.0,0.00010913,2]
[403889076,1769633239752,-152.31562534,0.00011124,2]
[403889077,1769633242207,5000.0,0.00010913,2]
[403889078,1769633264168,4672.62828282,0.00010913,2]
[403889079,1769633360374,-247.8433487,0.00011153,2]
[403889132,1769633431647,-247.8433487,0.00011041,2]
[403889134,1769633431660,-189.75502397,0.00011153,2]
[403889136,1769633431669,-6.94651441,0.00011266,2]
[403889199,1769633437699,-334.65539083,0.00011266,2]
[403889200,1769633437709,-221.055,0.00011465,2]
[403889201,1769633437718,-192.89703519,0.00011598,2]
[403889202,1769633437727,-300.0,0.00011598,2]
[403889203,1769633437738,-1200.0,0.00011598,2]
[403889204,1769633437747,-61353.30488962,0.00011599,2]
[403889205,1769633437758,-446.03775753,0.00011599,2]
[403889206,1769633437771,-599.78745696,0.00011599,2]
[403889207,1769633437783,-554.58286843,0.00011599,2]
[403889208,1769633437793,-1316.91553916,0.00011599,2]
[403889209,1769633437804,-1382.8095471,0.00011599,2]
[403889210,1769633437816,-14551.44589633,0.00011599,2]
[403889211,1769633437829,-5072.06148945,0.00011599,2]
[403889212,1769633437840,-302.0,0.00011599,2]
[403889213,1769633437851,-1634421.05455542,0.00011599,2]
[403889214,1769633437860,-151.0,0.000117,2]
[403889215,1769633437869,-151.0,0.000117,2]
[403889216,1769633437879,-151.0,0.000117,2]
[403889217,1769633437889,-151.0,0.000117,2]
[403889218,1769633437898,-151.0,0.000117,2]
[403889219,1769633437907,-151.0,0.000117,2]
[403889220,1769633437917,-151.0,0.000117,2]
[403889221,1769633437927,-151.0,0.000117,2]
[403889222,1769633437936,-151.0,0.000117,2]
[403889223,1769633437945,-151.0,0.000117,2]
[403889224,1769633437954,-300.0,0.00011931,2]
[403889225,1769633437963,-300.0,0.00011931,2]
[403889226,1769633437972,-300.0,0.00011931,2]
[403889227,1769633437981,-300.0,0.00011931,2]
[403889228,1769633437990,-300.0,0.00011931,2]
[403889229,1769633437999,-300.0,0.00011931,2]
[403889230,1769633438008,-300.0,0.00011931,2]
[403889231,1769633438017,-300.0,0.00011931,2]
[403889232,1769633438027,-300.0,0.00011931,2]
[403889233,1769633438036,-300.0,0.00011931,2]
[403889234,1769633438047,-300.0,0.00011931,2]
[403889235,1769633438057,-300.0,0.00011931,2]
[403889236,1769633438067,-300.0,0.00011931,2]
[403889237,1769633438076,-300.0,0.00011931,2]
[403889238,1769633438086,-300.0,0.00011931,2]
[403889239,1769633438095,-600.0,0.00011931,2]
[403889240,1769633438105,-170.58,0.00012329,2]
[403889241,1769633438115,-852.95,0.00012329,2]
[403889242,1769633438127,-1683.83304145,0.00012514,2]
[403889243,1769633438136,-420.0,0.00012737,2]
[403889244,1769633438146,-1680.0,0.00012758,2]
[403889245,1769633438156,-720.0,0.00013124,2]
[403889246,1769633438166,-403.09024818,0.00013266,2]
[403889247,1769633438175,-500.0,0.00013273,2]
[403889248,1769633438185,-500.0,0.00013273,2]
[403889249,1769633438194,-500.0,0.00013273,2]
[403889250,1769633438203,-500.0,0.00013273,2]
[403889251,1769633438213,-500.0,0.00013273,2]
[403889252,1769633438222,-300.0,0.00013673,2]
[403889253,1769633438231,-250.0,0.00013698,2]
[403889254,1769633438240,-500.0,0.00013698,2]
[403889255,1769633438250,-500.0,0.00013698,2]
[403889256,1769633438260,-500.0,0.00013698,2]
[403889257,1769633438269,-500.0,0.00013698,2]
[403889258,1769633438278,-500.0,0.00013698,2]
[403889259,1769633438288,-500.0,0.00013698,2]
[403889260,1769633438296,-500.0,0.00013698,2]
[403889261,1769633438305,-500.0,0.00013698,2]
[403889262,1769633438314,-500.0,0.00013698,2]
[403889263,1769633438323,-500.0,0.00013698,2]
[403889264,1769633438332,-500.0,0.00013698,2]
[403889265,1769633438341,-500.0,0.00013698,2]
[403889266,1769633438350,-500.0,0.00013698,2]
[403889267,1769633438359,-500.0,0.00013698,2]
[403889268,1769633438368,-500.0,0.00013698,2]
[403889269,1769633438378,-500.0,0.00013698,2]
[403889270,1769633438387,-500.0,0.00013698,2]
[403889271,1769633438396,-500.0,0.00013698,2]
[403889272,1769633438405,-500.0,0.00013698,2]
[403889273,1769633438414,-500.0,0.00013698,2]
[403889274,1769633438422,-640.58071433,0.00013698,2]
[403889275,1769633438431,-1000.0,0.00013699,2]
[403889276,1769633438441,-500.0,0.00013699,2]
[403889277,1769633438450,-500.0,0.00013699,2]
[403889278,1769633438459,-500.0,0.00013699,2]
[403889279,1769633438468,-500.0,0.00013699,2]
[403889280,1769633438476,-500.0,0.00013699,2]
[403889281,1769633438485,-351.35435037,0.00013699,2]
[403889282,1769633438494,-855.419529,0.00013821,2]
[403889283,1769633438503,-1000.0,0.00013821,2]
[403889284,1769633438512,-1000.0,0.00013821,2]
[403889285,1769633438521,-1000.0,0.00013821,2]
[403889286,1769633438530,-507.06964924,0.00013821,2]
[403889287,1769633438539,-152.70966246,0.00013835,2]
[403889288,1769633438548,-587.0,0.00013988,2]
[403889289,1769633438557,-100000.0,0.00014006,2]
[403889290,1769633438566,-3717.6201328,0.00014006,2]
[403889291,1769633438575,-742.0,0.00014033,2]
[403889292,1769633438584,-693.63223956,0.00014221,2]
[403889293,1769633438593,-341.02216059,0.00014247,2]
[403889294,1769633438602,-1134.23032778,0.00014247,2]
[403889295,1769633438610,-1000.0,0.00014247,2]
[403889296,1769633438620,-1000.0,0.00014247,2]
[403889297,1769633438630,-722.3651231,0.00014247,2]
[403889298,1769633438639,-1500.0,0.00014368,2]
[403889299,1769633438648,-1500.0,0.00014368,2]
[403889300,1769633438658,-1500.0,0.00014368,2]
[403889301,1769633438671,-864.0,0.00014436,2]
[403889302,1769633438680,-250.0,0.00014737,2]
[403889303,1769633438689,-500.0,0.00014795,2]
[403889304,1769633438699,-1500.0,0.00014795,2]
[403889305,1769633438707,-2000.0,0.00014916,2]
[403889306,1769633438717,-2000.0,0.00014916,2]
[403889307,1769633438726,-2000.0,0.00014916,2]
[403889308,1769633438734,-464.57859112,0.00015266,2]
[403889309,1769633438746,-2000.0,0.00015342,2]
[403889310,1769633438755,-823.0,0.00015362,2]
[403889311,1769633438918,-2500.0,0.00015464,2]
[403889312,1769633438932,-2500.0,0.00015464,2]
[403889313,1769633438942,-574.12268118,0.00015464,2]
[403889314,1769633438951,-5038.08922706,0.0001564,2]
[403889315,1769633438960,-1000.0,0.0001588,2]
[403889316,1769633438970,-2500.0,0.0001589,2]
[403889317,1769633438979,-2504.19700684,0.00016012,2]
[403889318,1769633438989,-3000.0,0.00016012,2]
[403889319,1769633438999,-3717.62013273,0.00016325,2]
[403889320,1769633439009,-500.0,0.00016438,2]
[403889321,1769633439019,-423.36819008,0.00016438,2]
[403889322,1769633439028,-150.42150351,0.00016438,2]
[403889323,1769633439038,-164.57351573,0.00016438,2]
[403889324,1769633439047,-3000.0,0.00016438,2]
[403889325,1769633439057,-200.0,0.00016473,2]
[403889326,1769633439066,-2000.0,0.0001656,2]
[403889327,1769633439075,-1152.0,0.00016871,2]
[403889328,1769633439085,-3500.0,0.00016986,2]
[403889329,1769633439094,-160.0,0.00017106,2]
[403889330,1769633439104,-1041.66666667,0.00017106,2]
[403889331,1769633439113,-160.0,0.00017106,2]
[403889332,1769633439122,-526.06693406,0.00017266,2]
[403889333,1769633439133,-1000.0,0.00017468,2]
[403889334,1769633439142,-244.0,0.00017468,2]
[403889335,1769633439152,-4000.0,0.00017534,2]
[403889336,1769633439161,-150.12313849,0.00017808,2]
[403889337,1769633439171,-281.81382901,0.00017842,2]
[403889338,1769633439180,-4500.0,0.00018082,2]
[403889339,1769633439190,-1613.0,0.00018528,2]
[403889340,1769633439199,-4194.85911576,0.0001863,2]
[403889341,1769633439208,-3717.62013273,0.00018645,2]
[403889342,1769633439217,-291.05722388,0.00018904,3]
[403889343,1769633439226,-508.0614,0.00019178,2]
[403889344,1769633439236,-508.0614,0.00019178,2]
[403889345,1769633439245,-200.0,0.00019178,2]
[403889346,1769633439255,-508.0614,0.00019178,2]
[403889347,1769633439264,-508.0614,0.00019178,2]
[403889348,1769633439274,-508.0614,0.00019178,2]
[403889349,1769633439283,-1000.0,0.00019215,2]
[403889350,1769633439293,-492.0,0.00019215,2]
[403889351,1769633439302,-587.555277,0.00019266,2]
[403889352,1769633439311,-172.01,0.000193,2]
[403889353,1769633439320,-1621.54,0.000193,2]
[403889354,1769633439329,-5520.1,0.000193,2]
[403889355,1769633439338,-160.5,0.000193,2]
[403889356,1769633439347,-412.0,0.00020348,2]
[403889357,1769633439356,-508.0614,0.00020411,5]
[403889358,1769633439365,-508.0614,0.00020411,5]
[403889359,1769633439375,-508.0614,0.00020411,5]
[403889360,1769633439384,-508.0614,0.00020411,5]
[403889361,1769633439393,-508.0614,0.00020822,6]
[403889362,1769633439403,-508.0614,0.00020822,6]
[403889363,1769633439412,-3717.62013273,0.00020964,2]
[403889364,1769633439421,-1000.0,0.00021136,10]
[403889365,1769633439430,-791.0,0.00021136,10]
[403889366,1769633439439,-649.04361995,0.00021266,2]
[403889367,1769633439449,-500.0,0.00022403,2]
[403889368,1769633439458,-276.01,0.000225,2]
[403889369,1769633439467,-168.0,0.0002274,8]
[403889370,1769633439476,-325.74,0.000228,7]
[403889371,1769633439486,-1000.0,0.0002325,10]
[403889372,1769633439495,-1000.0,0.0002325,10]
[403889373,1769633439504,-710.53196289,0.00023266,2]
[403889374,1769633439513,-3717.62013273,0.00023284,2]
[403889375,1769633439522,-615285.003744,0.000249,2]
[403889376,1769633439531,-772.02030583,0.00025266,2]
[403889377,1769633439540,-1000.0,0.00025575,10]